[Event "Late-Titled-Tuesday-Blitz-October-10-2023"]
[Site "Chess.com"]
[Date "2023.10.10"]
[Round "3"]
[White "StarkyNZ"]
[Black "bettercallcafu"]
[Result "1-0"]
[WhiteElo "2345"]
[BlackElo "2646"]
[TimeControl "180+1"]
[EndTime "14:27:30 PDT"]
[Termination "StarkyNZ won by checkmate"]

1. c4 {[%clk 0:02:27]} 1... e5 {[%clk 0:02:58.4]} 2. f4 {[%clk 0:02:18.9]} 2...
exf4 {[%clk 0:02:58.1]} 3. e4 {[%clk 0:02:17.4]} 3... fxe3 {[%clk 0:02:57.5]} 4.
d4 {[%clk 0:02:15.5]} 4... Nf6 {[%clk 0:02:56.6]} 5. Bxe3 {[%clk 0:02:14.2]}
5... Bb4+ {[%clk 0:02:55.7]} 6. Nd2 {[%clk 0:02:12.6]} 6... O-O {[%clk
0:02:55.7]} 7. Bg5 {[%clk 0:02:08]} 7... Re8+ {[%clk 0:02:55.4]} 8. Be2 {[%clk
0:02:02.6]} 8... d5 {[%clk 0:02:55.3]} 9. c5 {[%clk 0:02:00.6]} 9... Nc6 {[%clk
0:02:50]} 10. Nf3 {[%clk 0:01:58.9]} 10... Qe7 {[%clk 0:02:45]} 11. Kf1 {[%clk
0:01:56.3]} 11... h6 {[%clk 0:02:36.9]} 12. Bf4 {[%clk 0:01:53.7]} 12... Ng4
{[%clk 0:02:32.6]} 13. Nb3 {[%clk 0:01:44.5]} 13... Qf6 {[%clk 0:02:16.6]} 14.
Qc1 {[%clk 0:01:32.9]} 14... Rxe2 {[%clk 0:01:54.1]} 15. Kxe2 {[%clk 0:01:32.2]}
15... b6 {[%clk 0:01:54.5]} 16. Kf1 {[%clk 0:01:27.9]} 16... Ba6+ {[%clk
0:01:53.2]} 17. Kg1 {[%clk 0:01:26.8]} 17... bxc5 {[%clk 0:01:52.5]} 18. h3
{[%clk 0:01:24]} 18... c4 {[%clk 0:01:32.8]} 19. a3 {[%clk 0:01:18.1]} 19... Be7
{[%clk 0:01:24.7]} 20. hxg4 {[%clk 0:01:15.6]} 20... cxb3 {[%clk 0:01:06.7]} 21.
g5 {[%clk 0:01:14.5]} 21... Qg6 {[%clk 0:01:01.7]} 22. gxh6 {[%clk 0:01:12.4]}
22... Be2 {[%clk 0:01:01.4]} 23. Ne5 {[%clk 0:01:07.9]} 23... Nxe5 {[%clk
0:00:59.3]} 24. Bxe5 {[%clk 0:01:08.8]} 24... Bf3 {[%clk 0:00:52.3]} 25. Qf1
{[%clk 0:01:05.9]} 25... Bh5 {[%clk 0:00:44.1]} 26. hxg7 {[%clk 0:01:02]} 26...
Bg5 {[%clk 0:00:43.3]} 27. Qf3 {[%clk 0:00:57.8]} 27... f6 {[%clk 0:00:34.2]}
28. Qxh5 {[%clk 0:00:40.1]} 28... Be3+ {[%clk 0:00:33.7]} 29. Kf1 {[%clk
0:00:26.4]} 29... Qd3+ {[%clk 0:00:24.5]} 30. Qe2 {[%clk 0:00:24.9]} 30... Qf5+
{[%clk 0:00:24.5]} 31. Ke1 {[%clk 0:00:21.2]} 31... fxe5 {[%clk 0:00:18.2]} 32.
Rh8+ {[%clk 0:00:20.4]} 32... Kxg7 {[%clk 0:00:18.2]} 33. Rxa8 {[%clk
0:00:21.1]} 33... exd4 {[%clk 0:00:18.1]} 34. Rd1 {[%clk 0:00:18.3]} 34... Qg5
{[%clk 0:00:15.5]} 35. Qf3 {[%clk 0:00:12.5]} 35... Bf4 {[%clk 0:00:10.3]} 36.
Re8 {[%clk 0:00:10.7]} 36... Bg3+ {[%clk 0:00:08.6]} 37. Kf1 {[%clk 0:00:09.4]}
37... Bd6 {[%clk 0:00:09.3]} 38. Re2 {[%clk 0:00:06.7]} 38... Qh4 {[%clk
0:00:08.7]} 39. Rf2 {[%clk 0:00:07.1]} 39... d3 {[%clk 0:00:02.1]} 40. Rxd3
{[%clk 0:00:06.9]} 40... Qh1+ {[%clk 0:00:01.8]} 41. Ke2 {[%clk 0:00:07.1]}
41... Qb1 {[%clk 0:00:02.5]} 42. Qf7+ {[%clk 0:00:07.4]} 42... Kh6 {[%clk
0:00:02.9]} 43. Rf6+ {[%clk 0:00:07.2]} 43... Kg5 {[%clk 0:00:03.4]} 44. Qg6+
{[%clk 0:00:07.3]} 44... Kh4 {[%clk 0:00:03.6]} 45. Rh3# {[%clk 0:00:07.8]} 1-0

[Event "Late-Titled-Tuesday-Blitz-October-10-2023"]
[Site "Chess.com"]
[Date "2023.10.10"]
[Round "3"]
[White "koncheto"]
[Black "KaydenTroffChess"]
[Result "0-1"]
[WhiteElo "2489"]
[BlackElo "2794"]
[TimeControl "180+1"]
[EndTime "14:27:30 PDT"]
[Termination "KaydenTroffChess won by resignation"]

1. e4 {[%clk 0:03:00.9]} 1... c5 {[%clk 0:02:55.5]} 2. Nf3 {[%clk 0:03:00.4]}
2... g6 {[%clk 0:02:53.4]} 3. d4 {[%clk 0:03:00.3]} 3... cxd4 {[%clk 0:02:53.7]}
4. Nxd4 {[%clk 0:03:01.2]} 4... Bg7 {[%clk 0:02:54]} 5. c4 {[%clk 0:02:58.5]}
5... Qb6 {[%clk 0:02:51]} 6. Nb3 {[%clk 0:02:53.2]} 6... a5 {[%clk 0:02:50.1]}
7. Nc3 {[%clk 0:02:46.2]} 7... a4 {[%clk 0:02:47.4]} 8. Nd5 {[%clk 0:02:38.2]}
8... Qd8 {[%clk 0:02:47.4]} 9. Be3 {[%clk 0:02:12]} 9... Ra6 {[%clk 0:02:46.2]}
10. Nc5 {[%clk 0:02:09.4]} 10... Rc6 {[%clk 0:02:35.5]} 11. Nxa4 {[%clk
0:02:03.2]} 11... e6 {[%clk 0:02:35.2]} 12. Nb4 {[%clk 0:01:55]} 12... Qa5
{[%clk 0:02:18.8]} 13. Bd2 {[%clk 0:01:25.6]} 13... Rd6 {[%clk 0:02:17.8]} 14.
Nd5 {[%clk 0:01:06.6]} 14... Qd8 {[%clk 0:02:16.4]} 15. c5 {[%clk 0:01:00.3]}
15... Rc6 {[%clk 0:01:57.4]} 16. Nb4 {[%clk 0:00:59.6]} 16... Rc7 {[%clk
0:01:57.1]} 17. Bf4 {[%clk 0:00:55.3]} 17... e5 {[%clk 0:01:53.3]} 18. Be3
{[%clk 0:00:51]} 18... Ne7 {[%clk 0:01:52.5]} 19. Be2 {[%clk 0:00:46.8]} 19...
O-O {[%clk 0:01:50.3]} 20. O-O {[%clk 0:00:46.9]} 20... Na6 {[%clk 0:01:48.9]}
21. Nxa6 {[%clk 0:00:31.9]} 21... bxa6 {[%clk 0:01:49.8]} 22. Nb6 {[%clk
0:00:28.5]} 22... Bb7 {[%clk 0:01:48.1]} 23. f3 {[%clk 0:00:25.6]} 23... f5
{[%clk 0:01:45.1]} 24. Nd5 {[%clk 0:00:24.9]} 24... Nxd5 {[%clk 0:00:40.9]} 25.
exd5 {[%clk 0:00:25.1]} 25... d6 {[%clk 0:00:41.6]} 26. c6 {[%clk 0:00:24.7]}
26... Bc8 {[%clk 0:00:41.4]} 27. Bb6 {[%clk 0:00:24.1]} 27... Bh6 {[%clk
0:00:36.7]} 28. Qa4 {[%clk 0:00:20.2]} 28... Qe7 {[%clk 0:00:30.7]} 29. Qa5
{[%clk 0:00:15.4]} 29... Ra7 {[%clk 0:00:30.8]} 30. Bxa7 {[%clk 0:00:13.1]}
30... Qxa7+ {[%clk 0:00:31.7]} 31. Kh1 {[%clk 0:00:13.6]} 31... Be3 {[%clk
0:00:29.1]} 32. b4 {[%clk 0:00:11.6]} 32... Bb6 {[%clk 0:00:21.9]} 33. Qa4
{[%clk 0:00:11.1]} 33... f4 {[%clk 0:00:17.2]} 34. Rac1 {[%clk 0:00:10.9]} 34...
Qc7 {[%clk 0:00:14.7]} 35. Bxa6 {[%clk 0:00:09.1]} 35... Bf5 {[%clk 0:00:14.9]}
36. Bb7 {[%clk 0:00:08]} 36... e4 {[%clk 0:00:13.3]} 37. fxe4 {[%clk 0:00:07.3]}
37... Bxe4 {[%clk 0:00:14.2]} 38. b5 {[%clk 0:00:06.8]} 38... Bxd5 {[%clk
0:00:12.6]} 39. Rxf4 {[%clk 0:00:07.1]} 39... Re8 {[%clk 0:00:12.9]} 40. Rd1
{[%clk 0:00:03.2]} 40... Qe7 {[%clk 0:00:11.8]} 41. h3 {[%clk 0:00:03]} 41...
Qe5 {[%clk 0:00:10.4]} 42. Qb4 {[%clk 0:00:03.1]} 42... Bc5 {[%clk 0:00:09.9]}
43. Qd2 {[%clk 0:00:01.9]} 43... Be6 {[%clk 0:00:06.8]} 44. Rf3 {[%clk 0:00:02]}
44... Bf5 {[%clk 0:00:06.4]} 45. Rdf1 {[%clk 0:00:01.9]} 45... Be4 {[%clk
0:00:06.6]} 46. R3f2 {[%clk 0:00:02]} 46... Qh5 {[%clk 0:00:06.9]} 47. Kg1
{[%clk 0:00:01.7]} 47... Qh4 {[%clk 0:00:06.5]} 48. Qf4 {[%clk 0:00:02.2]} 48...
Qxf4 {[%clk 0:00:06.2]} 0-1

[Event "Late-Titled-Tuesday-Blitz-October-10-2023"]
[Site "Chess.com"]
[Date "2023.10.10"]
[Round "3"]
[White "ameetghasi100"]
[Black "Krakozia"]
[Result "0-1"]
[WhiteElo "2726"]
[BlackElo "2996"]
[TimeControl "180+1"]
[EndTime "14:27:31 PDT"]
[Termination "Krakozia won on time"]

1. c4 {[%clk 0:03:00.9]} 1... c5 {[%clk 0:02:59]} 2. Nf3 {[%clk 0:03:00]} 2...
Nf6 {[%clk 0:02:58.8]} 3. g3 {[%clk 0:02:59.1]} 3... b6 {[%clk 0:02:56.5]} 4.
Bg2 {[%clk 0:02:59.2]} 4... Bb7 {[%clk 0:02:57.1]} 5. O-O {[%clk 0:02:59.8]}
5... e6 {[%clk 0:02:56.5]} 6. d3 {[%clk 0:02:54.8]} 6... Be7 {[%clk 0:02:54.2]}
7. e4 {[%clk 0:02:54.6]} 7... d6 {[%clk 0:02:53.9]} 8. Nc3 {[%clk 0:02:53.9]}
8... O-O {[%clk 0:02:52.1]} 9. a3 {[%clk 0:02:51]} 9... Nc6 {[%clk 0:02:50.7]}
10. Rb1 {[%clk 0:02:50.5]} 10... Nd7 {[%clk 0:02:39.7]} 11. b4 {[%clk
0:02:34.9]} 11... Bf6 {[%clk 0:02:38.6]} 12. Ne2 {[%clk 0:02:07.4]} 12... Qc7
{[%clk 0:02:28.9]} 13. Be3 {[%clk 0:02:02.8]} 13... Rad8 {[%clk 0:02:25.4]} 14.
Qd2 {[%clk 0:01:48.3]} 14... Ne7 {[%clk 0:02:16.1]} 15. Rfc1 {[%clk 0:01:40.2]}
15... Rfe8 {[%clk 0:02:05.3]} 16. Nc3 {[%clk 0:01:39.2]} 16... a6 {[%clk
0:01:57.6]} 17. d4 {[%clk 0:01:33.2]} 17... cxd4 {[%clk 0:01:56.8]} 18. Nxd4
{[%clk 0:01:34.1]} 18... Ne5 {[%clk 0:01:55]} 19. Bf1 {[%clk 0:01:07]} 19...
N7c6 {[%clk 0:01:51.7]} 20. Be2 {[%clk 0:00:59.3]} 20... Nxd4 {[%clk 0:01:46.4]}
21. Bxd4 {[%clk 0:00:59.3]} 21... Nd7 {[%clk 0:01:45.4]} 22. Qe3 {[%clk
0:00:53.2]} 22... e5 {[%clk 0:01:39.5]} 23. Bxb6 {[%clk 0:00:43.4]} 23... Qxb6
{[%clk 0:01:29.7]} 24. c5 {[%clk 0:00:42.5]} 24... Qa7 {[%clk 0:01:18.4]} 25.
Nd5 {[%clk 0:00:40.4]} 25... dxc5 {[%clk 0:00:55.6]} 26. bxc5 {[%clk 0:00:39]}
26... Bc6 {[%clk 0:00:54.4]} 27. Nb4 {[%clk 0:00:32.5]} 27... Nb8 {[%clk
0:00:51.1]} 28. Bc4 {[%clk 0:00:23]} 28... h6 {[%clk 0:00:43.7]} 29. Bd5 {[%clk
0:00:15.8]} 29... Bg5 {[%clk 0:00:36.8]} 30. Qf3 {[%clk 0:00:05.6]} 30... Bxd5
{[%clk 0:00:34]} 31. Nxd5 {[%clk 0:00:05.3]} 31... Bxc1 {[%clk 0:00:31.6]} 32.
Rxc1 {[%clk 0:00:06.2]} 32... Nc6 {[%clk 0:00:29.1]} 33. Qg4 {[%clk 0:00:06.8]}
33... Re6 {[%clk 0:00:27.6]} 34. Rb1 {[%clk 0:00:06.1]} 34... Nd4 {[%clk
0:00:23.6]} 35. Rb6 {[%clk 0:00:04.5]} 35... Kh8 {[%clk 0:00:22.7]} 36. Qh5
{[%clk 0:00:03.8]} 36... Qd7 {[%clk 0:00:16.8]} 37. c6 {[%clk 0:00:02.2]} 37...
Rxc6 {[%clk 0:00:15.5]} 38. Rxc6 {[%clk 0:00:02.4]} 38... Nxc6 {[%clk
0:00:14.1]} 39. Qf3 {[%clk 0:00:02.2]} 39... Qe6 {[%clk 0:00:13.8]} 40. Ne3
{[%clk 0:00:02.1]} 40... Nd4 {[%clk 0:00:13.5]} 41. Qh5 {[%clk 0:00:02.6]} 41...
Qg6 {[%clk 0:00:12.4]} 42. Qe2 {[%clk 0:00:03.1]} 42... Qxe4 {[%clk 0:00:12.2]}
43. Qd1 {[%clk 0:00:02.8]} 43... Nf3+ {[%clk 0:00:12]} 44. Qxf3 {[%clk
0:00:03.7]} 44... Qxf3 {[%clk 0:00:11.3]} 45. Nf1 {[%clk 0:00:04.6]} 45... Rd1
{[%clk 0:00:10.6]} 0-1

[Event "Late-Titled-Tuesday-Blitz-October-10-2023"]
[Site "Chess.com"]
[Date "2023.10.10"]
[Round "3"]
[White "Beca95"]
[Black "The_Princess_Moon"]
[Result "1-0"]
[WhiteElo "2838"]
[BlackElo "2299"]
[TimeControl "180+1"]
[EndTime "14:27:35 PDT"]
[Termination "Beca95 won by resignation"]

1. d4 {[%clk 0:03:00.9]} 1... c5 {[%clk 0:02:58.8]} 2. c3 {[%clk 0:02:53.9]}
2... cxd4 {[%clk 0:02:57.4]} 3. cxd4 {[%clk 0:02:54.8]} 3... d6 {[%clk
0:02:56.2]} 4. Nc3 {[%clk 0:02:54.1]} 4... Nf6 {[%clk 0:02:56.8]} 5. e4 {[%clk
0:02:53.8]} 5... g6 {[%clk 0:02:56.7]} 6. Nf3 {[%clk 0:02:52.9]} 6... Bg7 {[%clk
0:02:56.5]} 7. h3 {[%clk 0:02:52.4]} 7... Nc6 {[%clk 0:02:56.6]} 8. Be3 {[%clk
0:02:52.8]} 8... O-O {[%clk 0:02:55.7]} 9. d5 {[%clk 0:02:52.9]} 9... Ne5 {[%clk
0:02:54.1]} 10. Nxe5 {[%clk 0:02:53]} 10... dxe5 {[%clk 0:02:55]} 11. Bc4 {[%clk
0:02:51]} 11... Ne8 {[%clk 0:02:52.4]} 12. O-O {[%clk 0:02:49]} 12... Nd6 {[%clk
0:02:52.4]} 13. Bb3 {[%clk 0:02:48.7]} 13... f5 {[%clk 0:02:49.5]} 14. f3 {[%clk
0:02:48.7]} 14... f4 {[%clk 0:02:48.5]} 15. Bf2 {[%clk 0:02:44.2]} 15... b6
{[%clk 0:02:45.8]} 16. a4 {[%clk 0:02:37.4]} 16... Ba6 {[%clk 0:02:44.9]} 17.
Re1 {[%clk 0:02:36.8]} 17... Rc8 {[%clk 0:02:44.5]} 18. Na2 {[%clk 0:02:35.8]}
18... Kh8 {[%clk 0:02:36]} 19. Nb4 {[%clk 0:02:35.3]} 19... Bb7 {[%clk
0:02:35.2]} 20. Rc1 {[%clk 0:02:34.1]} 20... Qd7 {[%clk 0:02:34.1]} 21. Qd3
{[%clk 0:02:26.4]} 21... a5 {[%clk 0:02:31.8]} 22. Na2 {[%clk 0:02:20.4]} 22...
b5 {[%clk 0:02:26.4]} 23. axb5 {[%clk 0:02:14.3]} 23... Qxb5 {[%clk 0:02:26.2]}
24. Qxb5 {[%clk 0:02:14.1]} 24... Nxb5 {[%clk 0:02:27.1]} 25. Ba4 {[%clk
0:02:13.7]} 25... Nd4 {[%clk 0:02:26.3]} 26. b4 {[%clk 0:01:43.9]} 26... axb4
{[%clk 0:02:10.8]} 27. Bxd4 {[%clk 0:01:42.9]} 27... exd4 {[%clk 0:02:07.2]} 28.
Nxb4 {[%clk 0:01:43.5]} 28... d3 {[%clk 0:02:03.9]} 29. Nxd3 {[%clk 0:01:38.4]}
29... Bd4+ {[%clk 0:02:03]} 30. Kh2 {[%clk 0:01:38.6]} 30... Ba6 {[%clk
0:01:58.1]} 31. Nb4 {[%clk 0:01:35.1]} 31... Bb7 {[%clk 0:01:43.9]} 32. Bc6
{[%clk 0:01:33.8]} 32... Ba8 {[%clk 0:01:41.9]} 33. Bxa8 {[%clk 0:01:33]} 33...
Rxa8 {[%clk 0:01:42.8]} 34. Nc6 {[%clk 0:01:32.7]} 34... Be3 {[%clk 0:01:40.3]}
35. Rxe3 {[%clk 0:01:29.6]} 35... fxe3 {[%clk 0:01:39.3]} 36. Nxe7 {[%clk
0:01:28.9]} 36... e2 {[%clk 0:01:33.2]} 37. Re1 {[%clk 0:01:26.3]} 37... Ra2
{[%clk 0:01:31.7]} 38. Nc6 {[%clk 0:01:26.4]} 38... Kg7 {[%clk 0:01:26.5]} 39.
Kg3 {[%clk 0:01:26.4]} 39... Kf6 {[%clk 0:01:24.6]} 40. e5+ {[%clk 0:01:22.9]}
40... Kf5 {[%clk 0:01:19.9]} 41. Kf2 {[%clk 0:01:14.4]} 41... Rd2 {[%clk
0:01:19.6]} 42. Rxe2 {[%clk 0:01:12.8]} 42... Rxd5 {[%clk 0:00:54.3]} 43. Ne7+
{[%clk 0:01:09.5]} 43... Ke6 {[%clk 0:00:54.8]} 44. Nxd5 {[%clk 0:01:10.1]}
44... Kxd5 {[%clk 0:00:55.5]} 45. e6 {[%clk 0:01:06.6]} 45... Re8 {[%clk
0:00:55.4]} 46. e7 {[%clk 0:01:04.8]} 46... Kd6 {[%clk 0:00:55.2]} 47. Kg3
{[%clk 0:01:05.1]} 47... Rxe7 {[%clk 0:00:53.4]} 48. Rxe7 {[%clk 0:01:03.9]}
48... Kxe7 {[%clk 0:00:54.3]} 49. Kf4 {[%clk 0:01:03.7]} 49... Kf6 {[%clk
0:00:54.3]} 50. h4 {[%clk 0:01:03.7]} 50... h6 {[%clk 0:00:54.3]} 51. Ke4 {[%clk
0:01:01.9]} 51... Ke6 {[%clk 0:00:54.5]} 52. g4 {[%clk 0:00:52.6]} 52... g5
{[%clk 0:00:20.2]} 53. h5 {[%clk 0:00:30.2]} 53... Ke7 {[%clk 0:00:09.3]} 54.
Ke5 {[%clk 0:00:29.3]} 54... Kf7 {[%clk 0:00:09.2]} 55. Kf5 {[%clk 0:00:29.5]}
55... Kg7 {[%clk 0:00:08.8]} 56. Ke6 {[%clk 0:00:29.8]} 56... Kg8 {[%clk
0:00:07.4]} 57. Kf6 {[%clk 0:00:28.6]} 57... Kh7 {[%clk 0:00:07.6]} 58. Kf7
{[%clk 0:00:29]} 58... Kh8 {[%clk 0:00:07.9]} 59. Kg6 {[%clk 0:00:29.2]} 59...
Kg8 {[%clk 0:00:08.4]} 60. Kxh6 {[%clk 0:00:29.2]} 1-0

[Event "Late-Titled-Tuesday-Blitz-October-10-2023"]
[Site "Chess.com"]
[Date "2023.10.10"]
[Round "3"]
[White "tolimachess"]
[Black "slow_jamz"]
[Result "0-1"]
[WhiteElo "2449"]
[BlackElo "2662"]
[TimeControl "180+1"]
[EndTime "14:27:35 PDT"]
[Termination "slow_jamz won by checkmate"]

1. e4 {[%clk 0:03:00.9]} 1... c5 {[%clk 0:02:59.3]} 2. Nc3 {[%clk 0:03:01.3]}
2... a6 {[%clk 0:02:59.2]} 3. g3 {[%clk 0:03:01]} 3... b5 {[%clk 0:02:59.8]} 4.
Bg2 {[%clk 0:03:01]} 4... Bb7 {[%clk 0:03:00.5]} 5. Nge2 {[%clk 0:03:01]} 5...
Nf6 {[%clk 0:02:59.9]} 6. d3 {[%clk 0:02:58.8]} 6... d6 {[%clk 0:03:00.3]} 7.
O-O {[%clk 0:02:58.3]} 7... e6 {[%clk 0:03:00.8]} 8. h3 {[%clk 0:02:58.9]} 8...
Qc7 {[%clk 0:02:56.2]} 9. Bg5 {[%clk 0:02:55.9]} 9... Nbd7 {[%clk 0:02:56.2]}
10. Qd2 {[%clk 0:02:54.9]} 10... Be7 {[%clk 0:02:53.2]} 11. f4 {[%clk
0:02:54.9]} 11... h6 {[%clk 0:02:52.4]} 12. Bh4 {[%clk 0:02:55.2]} 12... Rc8
{[%clk 0:02:32.1]} 13. f5 {[%clk 0:02:54.2]} 13... e5 {[%clk 0:02:30.5]} 14. g4
{[%clk 0:02:43.3]} 14... Nxe4 {[%clk 0:02:26.6]} 15. dxe4 {[%clk 0:02:41.3]}
15... Bxh4 {[%clk 0:02:26.4]} 16. Rad1 {[%clk 0:02:27.4]} 16... Be7 {[%clk
0:02:26.5]} 17. Ng3 {[%clk 0:02:05.5]} 17... Nf6 {[%clk 0:02:13]} 18. Bf3 {[%clk
0:01:57.6]} 18... b4 {[%clk 0:02:12.6]} 19. Nce2 {[%clk 0:01:56.7]} 19... c4
{[%clk 0:01:52.7]} 20. c3 {[%clk 0:01:55.8]} 20... Qb6+ {[%clk 0:01:43.8]} 21.
Kg2 {[%clk 0:01:52.9]} 21... a5 {[%clk 0:01:41.4]} 22. h4 {[%clk 0:01:52.2]}
22... Nd7 {[%clk 0:01:40.7]} 23. Rh1 {[%clk 0:01:51.9]} 23... Nc5 {[%clk
0:01:38.3]} 24. Nc1 {[%clk 0:01:45.1]} 24... bxc3 {[%clk 0:01:22.6]} 25. bxc3
{[%clk 0:01:46]} 25... Qb1 {[%clk 0:01:16.4]} 26. g5 {[%clk 0:01:33.9]} 26...
Nxe4 {[%clk 0:01:09.4]} 27. Qe1 {[%clk 0:01:08.9]} 27... Nxg3 {[%clk 0:01:00.9]}
28. Bxb7 {[%clk 0:01:07.4]} 28... Qxb7+ {[%clk 0:01:01.8]} 29. Kxg3 {[%clk
0:01:07]} 29... hxg5 {[%clk 0:01:00.9]} 30. hxg5 {[%clk 0:01:03.6]} 30... Rxh1
{[%clk 0:01:01.2]} 31. Qxh1 {[%clk 0:01:04]} 31... Qxh1 {[%clk 0:01:01.7]} 32.
Rxh1 {[%clk 0:01:04.6]} 32... Bxg5 {[%clk 0:01:02.2]} 33. Ne2 {[%clk 0:00:59.6]}
33... Ke7 {[%clk 0:01:00.5]} 34. Kf3 {[%clk 0:00:59.8]} 34... d5 {[%clk
0:01:00.1]} 35. Ng3 {[%clk 0:00:59.4]} 35... Bf6 {[%clk 0:00:57.2]} 36. Rb1
{[%clk 0:00:59.5]} 36... Rc7 {[%clk 0:00:55.2]} 37. Rb5 {[%clk 0:00:47.7]} 37...
e4+ {[%clk 0:00:56.1]} 38. Ke2 {[%clk 0:00:35.6]} 38... Bxc3 {[%clk 0:00:51]}
39. Rxd5 {[%clk 0:00:35.2]} 39... Bb4 {[%clk 0:00:51.4]} 40. Kd1 {[%clk
0:00:27.9]} 40... c3 {[%clk 0:00:50.9]} 41. Kc2 {[%clk 0:00:28.4]} 41... e3
{[%clk 0:00:43.3]} 42. Re5+ {[%clk 0:00:27.6]} 42... Kf6 {[%clk 0:00:43.9]} 43.
Rxe3 {[%clk 0:00:28.1]} 43... Rd7 {[%clk 0:00:44.4]} 44. Ne4+ {[%clk 0:00:14.4]}
44... Kxf5 {[%clk 0:00:44.4]} 45. a3 {[%clk 0:00:14.9]} 45... Kf4 {[%clk
0:00:39.5]} 46. Re1 {[%clk 0:00:12]} 46... Bxa3 {[%clk 0:00:37.7]} 47. Nxc3
{[%clk 0:00:12.2]} 47... Bb4 {[%clk 0:00:34.2]} 48. Rf1+ {[%clk 0:00:12.2]}
48... Ke5 {[%clk 0:00:30.7]} 49. Ne2 {[%clk 0:00:11.7]} 49... Rd2+ {[%clk
0:00:29.2]} 50. Kb3 {[%clk 0:00:12.3]} 50... Rxe2 {[%clk 0:00:29.5]} 51. Rxf7
{[%clk 0:00:12.7]} 51... g5 {[%clk 0:00:30]} 52. Re7+ {[%clk 0:00:12]} 52...
Bxe7 {[%clk 0:00:29.5]} 53. Ka4 {[%clk 0:00:12]} 53... Bb4 {[%clk 0:00:28.7]}
54. Kb5 {[%clk 0:00:12.1]} 54... g4 {[%clk 0:00:29.6]} 55. Ka4 {[%clk
0:00:12.5]} 55... g3 {[%clk 0:00:30.5]} 56. Kb3 {[%clk 0:00:13]} 56... g2 {[%clk
0:00:31.4]} 57. Kc4 {[%clk 0:00:13.8]} 57... g1=Q {[%clk 0:00:32.3]} 58. Kb5
{[%clk 0:00:14.6]} 58... Qd1 {[%clk 0:00:32.2]} 59. Ka6 {[%clk 0:00:14.6]} 59...
Qd3+ {[%clk 0:00:32.2]} 60. Ka7 {[%clk 0:00:15.5]} 60... Bc5+ {[%clk 0:00:31.9]}
61. Kb7 {[%clk 0:00:15.6]} 61... Qb5+ {[%clk 0:00:32.2]} 62. Kc8 {[%clk
0:00:16.4]} 62... Qc6+ {[%clk 0:00:32.2]} 63. Kb8 {[%clk 0:00:17]} 63... Bd6+
{[%clk 0:00:32.6]} 64. Ka7 {[%clk 0:00:17.9]} 64... Qc7+ {[%clk 0:00:32.5]} 65.
Ka6 {[%clk 0:00:18.5]} 65... Qc6+ {[%clk 0:00:32.7]} 66. Ka7 {[%clk 0:00:18.9]}
66... Bc5+ {[%clk 0:00:33.1]} 67. Kb8 {[%clk 0:00:19.1]} 67... Qb6+ {[%clk
0:00:33.4]} 68. Kc8 {[%clk 0:00:19.3]} 68... Qa7 {[%clk 0:00:32.3]} 69. Kd8
{[%clk 0:00:19.5]} 69... Qb7 {[%clk 0:00:32.8]} 70. Ke8 {[%clk 0:00:19.7]} 70...
Qe7# {[%clk 0:00:33.5]} 0-1

[Event "Late-Titled-Tuesday-Blitz-October-10-2023"]
[Site "Chess.com"]
[Date "2023.10.10"]
[Round "3"]
[White "FontVella8"]
[Black "Roberz12"]
[Result "0-1"]
[WhiteElo "2622"]
[BlackElo "2450"]
[TimeControl "180+1"]
[EndTime "14:27:38 PDT"]
[Termination "Roberz12 won by resignation"]

1. e4 {[%clk 0:03:00.9]} 1... c5 {[%clk 0:03:00.9]} 2. Nf3 {[%clk 0:03:01.1]}
2... Nc6 {[%clk 0:03:00]} 3. d4 {[%clk 0:03:01.3]} 3... cxd4 {[%clk 0:03:00.9]}
4. Nxd4 {[%clk 0:03:02]} 4... Nf6 {[%clk 0:03:01.4]} 5. Nc3 {[%clk 0:03:02.2]}
5... e5 {[%clk 0:02:57.8]} 6. Ndb5 {[%clk 0:03:02.3]} 6... d6 {[%clk 0:02:58.3]}
7. Nd5 {[%clk 0:03:02.9]} 7... Nxd5 {[%clk 0:02:58.1]} 8. exd5 {[%clk
0:03:03.3]} 8... Ne7 {[%clk 0:02:58.7]} 9. c4 {[%clk 0:03:01.2]} 9... Ng6 {[%clk
0:02:58.7]} 10. Qa4 {[%clk 0:02:59.2]} 10... Bd7 {[%clk 0:02:59]} 11. Qb4 {[%clk
0:02:59.6]} 11... Bf5 {[%clk 0:02:56]} 12. h4 {[%clk 0:02:44.9]} 12... h5 {[%clk
0:02:55.7]} 13. Be2 {[%clk 0:02:39.7]} 13... Be7 {[%clk 0:02:30.7]} 14. Bg5
{[%clk 0:02:38]} 14... f6 {[%clk 0:02:28.7]} 15. Be3 {[%clk 0:02:37.9]} 15... a6
{[%clk 0:02:28]} 16. Nc3 {[%clk 0:02:34.1]} 16... Qc8 {[%clk 0:02:14.9]} 17. Na4
{[%clk 0:02:28]} 17... Qc7 {[%clk 0:01:57.2]} 18. Nb6 {[%clk 0:02:22.7]} 18...
Rb8 {[%clk 0:01:48.7]} 19. Qa4+ {[%clk 0:02:16.6]} 19... Kf7 {[%clk 0:01:48.6]}
20. Qd1 {[%clk 0:02:17.3]} 20... Nf4 {[%clk 0:01:44.2]} 21. O-O {[%clk 0:01:45]}
21... g5 {[%clk 0:01:30.3]} 22. hxg5 {[%clk 0:01:19.7]} 22... fxg5 {[%clk
0:01:30.3]} 23. c5 {[%clk 0:01:12.5]} 23... h4 {[%clk 0:00:59.7]} 24. Bg4 {[%clk
0:01:04.4]} 24... Be4 {[%clk 0:00:46]} 25. f3 {[%clk 0:00:47.7]} 25... Bg6
{[%clk 0:00:43.8]} 26. Nc4 {[%clk 0:00:43.2]} 26... Bd3 {[%clk 0:00:35.5]} 27.
Nxd6+ {[%clk 0:00:26]} 27... Bxd6 {[%clk 0:00:33]} 28. cxd6 {[%clk 0:00:24.4]}
28... Qc4 {[%clk 0:00:17.6]} 29. Rc1 {[%clk 0:00:16.8]} 29... Ne2+ {[%clk
0:00:17.3]} 30. Qxe2 {[%clk 0:00:12.1]} 30... Bxe2 {[%clk 0:00:17.9]} 31. Rxc4
{[%clk 0:00:12.8]} 31... Bxc4 {[%clk 0:00:18.8]} 32. Rc1 {[%clk 0:00:13.1]}
32... Bxd5 {[%clk 0:00:18.6]} 33. Rc7+ {[%clk 0:00:13.1]} 33... Kf6 {[%clk
0:00:19.1]} 34. Bd2 {[%clk 0:00:04.4]} 34... Rhd8 {[%clk 0:00:17.3]} 35. Bb4
{[%clk 0:00:04.3]} 35... b6 {[%clk 0:00:16.2]} 36. a4 {[%clk 0:00:03.5]} 36...
Rb7 {[%clk 0:00:15.9]} 37. Re7 {[%clk 0:00:02.1]} 37... Rxe7 {[%clk 0:00:13.8]}
38. dxe7 {[%clk 0:00:02.3]} 38... Re8 {[%clk 0:00:13.8]} 39. Bd7 {[%clk
0:00:02.3]} 39... Rxe7 {[%clk 0:00:14.1]} 40. Bxe7+ {[%clk 0:00:02.7]} 40...
Kxe7 {[%clk 0:00:15]} 41. Bc8 {[%clk 0:00:02.2]} 41... a5 {[%clk 0:00:14.9]} 42.
Bf5 {[%clk 0:00:02.8]} 42... Kd6 {[%clk 0:00:15.4]} 43. Bc2 {[%clk 0:00:02.8]}
43... Kc5 {[%clk 0:00:16.3]} 44. Kf2 {[%clk 0:00:03.1]} 44... Kb4 {[%clk
0:00:16.8]} 45. Ke3 {[%clk 0:00:03.3]} 45... Bb3 {[%clk 0:00:17.4]} 46. Bd3
{[%clk 0:00:03.4]} 46... Bd5 {[%clk 0:00:17.4]} 47. Bc2 {[%clk 0:00:03.4]} 47...
Bc6 {[%clk 0:00:18]} 48. b3 {[%clk 0:00:02.7]} 48... Kc3 {[%clk 0:00:18.5]} 49.
Bd1 {[%clk 0:00:02.9]} 49... Bd5 {[%clk 0:00:19.1]} 50. Be2 {[%clk 0:00:01.5]}
50... Kxb3 {[%clk 0:00:19.1]} 51. Bb5 {[%clk 0:00:02.4]} 51... Kb4 {[%clk
0:00:19.5]} 52. Bd7 {[%clk 0:00:02.5]} 52... Kc5 {[%clk 0:00:20]} 53. Kd3 {[%clk
0:00:03]} 53... Bc6 {[%clk 0:00:20.1]} 54. Bxc6 {[%clk 0:00:02.7]} 54... Kxc6
{[%clk 0:00:21]} 55. Kc4 {[%clk 0:00:03.4]} 55... b5+ {[%clk 0:00:19.9]} 56.
axb5+ {[%clk 0:00:03.1]} 56... Kb6 {[%clk 0:00:20.8]} 57. Kd5 {[%clk 0:00:02.4]}
57... Kxb5 {[%clk 0:00:21.7]} 58. Kxe5 {[%clk 0:00:03.1]} 58... a4 {[%clk
0:00:22.6]} 59. Kd4 {[%clk 0:00:03.5]} 59... a3 {[%clk 0:00:23.5]} 60. Kc3
{[%clk 0:00:03.9]} 60... Kc5 {[%clk 0:00:23.7]} 0-1